bitfinex-derivatives/quotes_ETHF0:USTF0_20241228
["timestamp","ask_amount","ask_price","bid_price","bid_amount"]
[1735392364266,0.29751,3367.0,3366.9,3.50532]
[1735392364863,0.29751,3367.0,3366.9,0.29752]
[1735392365264,0.29753,3366.9,3366.8,0.29753]
[1735392365563,0.4218,3366.9,3366.6,1.63695]
[1735392365767,0.29754,3366.8,3366.7,0.29754]
[1735392365960,0.4218,3366.9,3366.6,1.63695]
[1735392366367,0.29754,3366.8,3366.7,0.29754]
[1735392366971,0.29754,3366.7,3366.6,1.63695]
[1735392367970,1.56834079,3366.8,3365.8,3.2078]
[1735392368164,1.56834079,3366.4,3365.8,3.2078]
[1735392368463,0.29761,3366.1,3366.0,0.2976]
[1735392368662,0.29758,3366.4,3366.3,0.29757]
[1735392368870,3.50535,3366.6,3366.5,0.29756]
[1735392369067,3.2078,3366.6,3366.5,0.29756]
[1735392369271,0.29755,3366.7,3366.6,0.29754]
[1735392369871,0.29756,3366.6,3366.5,0.29755]
[1735392370074,2.31215079,3367.0,3366.3,3.2078]
[1735392370075,0.29757,3366.4,3366.3,0.29758]
[1735392370472,0.29756,3366.5,3366.4,0.29756]
[1735392370777,0.29758,3366.3,3366.2,0.75608]
[1735392370973,0.74388,3366.6,3365.9,44.0078]
[1735392371277,0.2976,3366.0,3365.9,44.3054]
[1735392371574,0.2976,3366.0,3365.9,44.0078]
[1735392371769,0.2976,3366.0,3365.9,44.30541]
[1735392371969,0.29764,3365.6,3365.5,3.50544]
[1735392372175,0.29764,3365.6,3365.5,3.2078]
[1735392372485,0.29769,3365.0,3364.9,4.65765711]
[1735392372781,3.50549,3365.0,3364.9,4.65765711]
[1735392372976,5.07383079,3365.0,3364.9,4.65765711]
[1735392373176,3.2078,3365.0,3364.9,4.65765711]
[1735392373382,0.29768,3365.1,3364.9,1.1773]
[1735392373582,0.4528,3365.2,3364.9,0.8796]
[1735392373784,0.29769,3365.0,3364.9,1.1773]
[1735392373980,0.4528,3365.2,3364.9,0.8796]
[1735392374180,0.29769,3365.1,3364.9,1.17729]
[1735392374381,0.29769,3365.1,3364.9,0.8796]
[1735392374685,0.75048,3365.2,3365.0,0.29769]
[1735392374876,0.29768,3365.1,3365.0,0.29769]
[1735392375079,0.29771,3364.9,3364.8,0.2977]
[1735392375481,0.29769,3365.1,3364.9,0.29769]
[1735392375985,0.29766,3365.3,3364.7,4.1231]
[1735392376182,0.29766,3365.3,3365.1,0.29768]
[1735392376382,3.2078,3365.5,3365.2,0.4225]
[1735392376788,3.50545,3365.5,3365.3,1.21296]
[1735392376995,0.29766,3365.4,3365.3,1.21296]
[1735392377283,0.29766,3365.4,3365.3,0.9153]
[1735392379684,4.77614079,3365.5,3364.7,3.2078]
[1735392379886,0.2977,3365.0,3364.9,0.2977]
[1735392380085,0.2977,3365.0,3364.7,4.0859]
[1735392380286,0.2977,3365.0,3364.8,0.2977]
[1735392381292,0.2977,3364.9,3364.7,4.38362]
[1735392381592,0.29771,3364.8,3364.7,4.0859]
[1735392381792,0.29771,3364.8,3364.7,3.2078]
[1735392382186,1.56834079,3365.2,3364.6,2.25995]
[1735392382187,0.29772,3364.7,3364.6,2.25995]
[1735392382495,0.29772,3364.7,3364.6,0.93135]
[1735392383592,0.4281,3364.8,3364.3,0.29775]
[1735392383792,0.29774,3364.5,3364.3,0.29775]
[1735392383990,4.1046,3365.1,3364.2,3.2078]
[1735392384691,0.2977,3364.9,3364.7,0.29771]
[1735392385095,4.1046,3365.1,3364.2,3.2078]
[1735392385390,0.29769,3365.0,3364.9,0.2977]
[1735392385795,0.29772,3364.8,3364.7,0.29771]
[1735392386789,4.1046,3365.1,3364.6,0.902]
[1735392386988,0.29772,3364.7,3364.6,1.19972]
[1735392388390,1.56834079,3364.9,3364.6,0.902]
[1735392388591,0.29769,3365.0,3364.9,0.2977]
[1735392389091,3.50549,3365.1,3365.0,0.29769]
[1735392389695,3.2078,3365.1,3365.0,0.29769]
[1735392391895,1.86602079,3365.2,3365.1,0.29768]
[1735392392694,0.2977,3365.0,3364.9,0.29769]
[1735392393494,0.29771,3364.8,3364.7,3.50552]
[1735392393699,1.86605079,3364.8,3364.7,3.2078]
[1735392394100,0.29772,3364.7,3364.6,0.00185758]
[1735392396904,0.29772,3364.7,3364.6,0.29958758]
[1735392398803,0.29772,3364.7,3364.6,0.00185758]
[1735392400100,0.29772,3364.7,3364.6,0.29958758]
[1735392401700,3.2078,3364.8,3364.7,0.29772]
[1735392402106,3.2078,3364.8,3364.7,1.59042]
[1735392402508,3.2078,3364.8,3364.7,42.39042]
[1735392403007,3.2078,3364.8,3364.7,1.59042]
[1735392403214,3.50551,3364.8,3364.7,1.59042]
[1735392404509,0.29772,3364.7,3364.6,0.29957758]
[1735392404705,0.72022,3364.7,3364.6,0.29957758]
[1735392405712,0.72022,3364.7,3364.6,0.00185758]
[1735392406611,0.72022,3364.7,3364.6,0.29958758]
[1735392407213,0.72022,3364.7,3364.6,0.00185758]
[1735392407713,0.72022,3364.7,3364.6,0.29958758]
[1735392408915,5.07386079,3364.8,3364.7,0.29772]
[1735392409311,3.50552,3364.8,3364.7,0.74042]
[1735392412213,3.50552,3364.8,3364.7,0.4427]
[1735392412510,3.50552,3364.8,3364.7,0.74042]
[1735392417722,0.29772,3364.8,3364.7,0.74042]
[1735392418617,0.29772,3364.8,3364.7,0.4427]
[1735392419019,0.29772,3364.8,3364.7,0.74042]
[1735392420011,0.29772,3364.8,3364.7,0.4427]
[1735392420420,0.29772,3364.8,3364.7,0.74042]
[1735392422119,1.56834079,3364.8,3364.6,0.00185758]
[1735392422326,0.29772,3364.7,3364.6,0.00185758]
[1735392424527,4.77614079,3364.8,3364.2,4.65765711]
[1735392424728,0.29775,3364.3,3364.2,4.65765711]
[1735392425817,0.4467,3364.4,3363.8,8.59024711]
[1735392426020,0.29779,3363.9,3363.8,8.59024711]
[1735392426836,0.29779,3363.9,3363.8,4.65765711]
[1735392427125,0.29779,3363.9,3363.8,4.95545711]
[1735392428527,0.29777,3364.2,3364.1,0.29776]
[1735392430722,0.29777,3364.2,3364.1,1.67536]
[1735392430927,0.29776,3364.3,3364.2,0.29775]
[1735392433330,4.77614079,3364.4,3364.1,1.3776]
[1735392433523,0.29775,3364.4,3364.3,0.29775]
[1735392433920,0.4256,3364.6,3364.1,1.3776]
[1735392434128,0.29776,3364.3,3364.2,0.29776]
[1735392437036,0.29774,3364.6,3364.5,0.29773]
[1735392440337,1.56834079,3364.7,3364.3,4.65765711]
[1735392440535,1.86607079,3364.7,3364.6,0.29773]
[1735392442335,0.29772,3364.8,3364.7,0.29771]
[1735392442732,0.29773,3364.7,3364.6,0.29772]
[1735392449938,0.29773,3364.7,3364.6,0.74562]
[1735392452832,0.2977,3364.9,3364.8,0.29771]
[1735392453039,3.5055,3365.0,3364.9,0.2977]
[1735392453534,3.50549,3365.0,3364.9,0.2977]
[1735392455347,3.2078,3365.0,3364.9,0.2977]
[1735392455644,3.50549,3365.0,3364.9,0.2977]
[1735392456032,3.2078,3365.0,3364.9,0.2977]
[1735392456232,0.428,3365.1,3365.0,0.29769]
[1735392457637,0.72568,3365.1,3365.0,0.29769]
[1735392460343,0.428,3365.1,3365.0,0.29769]
[1735392461845,0.72568,3365.1,3365.0,0.29769]
[1735392462745,0.72568,3365.1,3365.0,3.50549]
[1735392463642,0.29768,3365.1,3365.0,3.50549]
[1735392463842,0.29768,3365.2,3365.1,0.29767]
[1735392464048,0.4454,3365.4,3365.0,3.2078]
[1735392464250,0.74307,3365.4,3365.3,0.29766]
[1735392464744,0.74307,3365.4,3365.1,1.17741]
[1735392464745,0.29765,3365.6,3365.5,0.29763]
[1735392465145,0.4454,3365.7,3365.3,0.8782]
[1735392465344,3.50543,3365.8,3365.7,0.29763]
[1735392466050,3.50542,3365.8,3365.7,0.29763]
[1735392471356,0.29762,3365.8,3365.7,0.29763]
[1735392477059,0.4543,3366.0,3365.9,0.29761]
[1735392477754,0.4543,3366.0,3365.9,1.17551]
[1735392477951,1.86594079,3366.1,3365.9,0.8779]
[1735392478154,0.4406,3366.3,3365.9,1.62193]
[1735392478356,0.73819,3366.3,3366.2,0.29759]
[1735392478954,2.32241079,3366.4,3365.9,1.62193]
[1735392479157,2.32241079,3366.4,3366.3,0.29758]
[1735392481864,0.75407,3366.4,3366.3,0.29758]
[1735392483560,0.29759,3366.3,3366.2,0.29758]
[1735392484065,0.75407,3366.4,3366.3,0.29758]
[1735392484360,0.4565,3366.4,3366.3,0.29758]
[1735392484566,3.50536,3366.5,3366.4,0.29757]
[1735392484763,3.96576,3366.5,3366.4,0.29757]
[1735392485259,3.6682,3366.5,3366.4,0.29757]
[1735392486559,0.72893,3366.9,3366.8,0.29753]
[1735392488266,3.6392,3366.9,3365.9,4.65765711]
[1735392488568,0.29759,3366.3,3366.2,0.29758]
[1735392488967,0.72859,3366.3,3366.2,0.29758]
[1735392493070,0.431,3366.3,3366.2,0.29758]
[1735392494060,3.2078,3366.8,3366.1,1.3323]
[1735392494270,0.74875,3366.7,3366.6,0.29754]
[1735392494665,0.74875,3366.7,3366.6,41.09754]
[1735392495273,0.74875,3366.7,3366.6,0.29754]
[1735392496969,0.4512,3366.7,3366.6,0.29754]
[1735392497263,0.74874,3366.7,3366.6,0.29754]
[1735392501772,0.29754,3366.7,3366.6,0.29754]
[1735392509271,0.74194,3366.8,3366.7,0.29754]
[1735392512074,0.29754,3366.7,3366.6,0.4553]
[1735392512381,0.29758,3366.3,3366.2,1.20468]
[1735392513479,0.4501,3366.6,3365.9,3.2078]
[1735392513783,0.2976,3366.0,3365.9,3.2078]
[1735392515787,0.2976,3366.0,3365.9,3.50541]
[1735392516483,0.4644,3366.2,3365.8,0.4639]
[1735392516684,0.29761,3365.9,3365.8,0.76151]
[1735392518290,0.29761,3365.9,3365.8,0.4639]
[1735392518694,0.29761,3365.9,3365.8,0.76152]
[1735392519999,0.29761,3365.9,3365.8,0.4639]
[1735392520199,0.29761,3365.9,3365.8,0.76152]
[1735392522801,0.29761,3366.0,3365.9,0.2976]
[1735392523395,0.75061,3366.1,3365.8,0.4639]
[1735392523602,0.75061,3366.1,3366.0,0.2976]
[1735392524601,3.2078,3366.7,3366.2,0.29759]
[1735392524805,3.50535,3366.7,3366.6,0.29755]
[1735392525196,0.29755,3366.7,3366.6,0.29755]
[1735392525404,1.20503,3366.9,3366.8,0.29753]
[1735392529008,0.9075,3366.9,3366.4,8.33205711]
[1735392529208,0.9075,3366.9,3366.5,0.29755]
[1735392529209,0.29756,3366.6,3366.5,0.29755]
[1735392530401,0.29754,3366.8,3366.7,0.29753]
[1735392535914,4.1153,3366.9,3366.3,0.8902]
[1735392536224,0.29757,3366.4,3366.3,1.18776]
[1735392536723,3.2078,3366.4,3366.2,4.65765711]
[1735392537009,1.21688,3366.3,3366.2,1.92584231]
[1735392537310,1.21688,3366.3,3366.2,1.22284231]
[1735392537509,1.21688,3366.3,3366.2,0.51984231]
[1735392537715,0.29761,3365.9,3365.8,7.007124]
[1735392538010,3.50541,3365.9,3365.8,7.007124]
[1735392538911,0.29767,3365.2,3365.1,0.29768]
[1735392539307,0.29768,3365.1,3365.0,0.72839]
[1735392539912,0.29768,3365.1,3365.0,0.4307]
[1735392541112,0.29768,3365.1,3364.4,7.007124]
[1735392541113,3.2078,3365.1,3364.4,7.007124]
[1735392541311,0.29773,3364.6,3364.5,7.007124]
[1735392541509,0.29773,3364.6,3364.5,7.304864]
[1735392541812,0.29773,3364.6,3364.5,7.007124]
[1735392542614,3.2078,3364.7,3364.3,1.18695]
[1735392542615,0.29774,3364.4,3364.3,1.18695]
[1735392542912,0.29774,3364.5,3364.4,0.29774]
[1735392543215,0.29773,3364.6,3364.5,0.29774]
[1735392543416,3.50552,3364.7,3364.6,0.29773]
[1735392545316,0.29773,3364.6,3364.5,0.29773]
[1735392545713,0.29772,3364.7,3364.6,0.29773]
[1735392546613,0.29771,3364.9,3364.8,0.2977]
[1735392547220,0.29769,3365.0,3364.9,0.29769]
[1735392547416,3.50549,3365.1,3365.0,0.29769]
[1735392547621,3.2078,3365.1,3365.0,0.29769]
[1735392548716,0.29767,3365.3,3365.2,0.29767]
[1735392560230,0.29766,3365.4,3365.3,0.29765]
[1735392565831,3.2078,3365.6,3365.5,0.29765]
[1735392566337,3.2078,3365.6,3365.5,41.09765]
[1735392571643,3.2078,3365.6,3365.3,0.444]
[1735392571838,0.29766,3365.3,3365.2,0.29767]
[1735392572339,0.29767,3365.2,3365.1,0.463]
[1735392572637,0.2977,3364.9,3364.8,3.2078]
[1735392572834,0.2977,3364.9,3364.8,3.50551]
[1735392573139,0.2977,3364.9,3364.8,3.2078]
[1735392573747,0.2977,3364.9,3364.8,3.50551]
[1735392581234,0.2977,3364.9,3364.8,0.29771]
[1735392582845,0.2977,3365.0,3364.9,0.29769]
[1735392585548,3.6347,3365.4,3364.7,0.4445]
[1735392585746,3.6347,3365.4,3365.1,0.29767]
[1735392585747,0.29768,3365.2,3365.1,0.29767]
[1735392599052,0.29768,3365.1,3365.0,0.73208]
[1735392599251,0.29768,3365.1,3365.0,0.4344]
[1735392602261,0.29768,3365.1,3365.0,0.73209]
[1735392603053,0.29768,3365.2,3365.1,0.29767]
[1735392603554,3.2078,3365.3,3365.0,1.17863]
[1735392603759,0.29767,3365.3,3365.2,0.29767]
[1735392605152,3.50547,3365.3,3365.2,0.29767]
[1735392605561,0.29768,3365.1,3365.0,0.4344]
[1735392607156,0.4463,3365.2,3364.8,0.29771]
[1735392607366,0.2977,3364.9,3364.8,0.29771]
[1735392610756,0.74422,3365.1,3364.7,0.8934]
[1735392610757,0.74422,3365.1,3364.7,0.4489]
[1735392610956,0.29771,3364.8,3364.7,0.4489]
[1735392611661,0.29771,3364.8,3364.7,0.74662]
[1735392612262,0.29771,3364.8,3364.7,0.4489]
[1735392613965,0.29771,3364.8,3364.7,0.74662]
[1735392614960,0.2977,3365.0,3364.9,0.29769]
[1735392616659,0.29771,3364.9,3364.8,0.2977]
[1735392616860,0.29771,3364.8,3364.7,0.74661]
[1735392617457,0.29771,3364.8,3364.7,6.83783744]
[1735392618566,0.4463,3365.2,3364.7,6.54012744]
[1735392618762,0.4463,3365.2,3365.0,0.29768]
[1735392618763,0.29769,3365.1,3365.0,0.29768]
[1735392622860,0.29769,3365.1,3364.9,0.467]
[1735392622861,0.29769,3365.0,3364.9,0.7647]
[1735392623664,3.50549,3365.0,3364.9,0.7647]
[1735392627470,0.29769,3365.0,3364.9,0.7647]
[1735392629368,3.2078,3365.4,3364.9,0.7647]
[1735392629572,0.29768,3365.3,3365.2,0.29766]
[1735392630867,0.29769,3365.1,3365.0,0.29768]
[1735392631276,3.2078,3365.4,3364.9,0.467]
[1735392631572,0.4448,3365.6,3364.9,7.771824]
[1735392631573,3.50549,3365.0,3364.9,7.771824]
[1735392632571,3.50549,3365.0,3364.9,7.474124]
[1735392632769,3.50549,3365.0,3364.9,0.467]
[1735392634469,3.50549,3365.0,3364.9,0.7647]
[1735392636275,3.50549,3365.0,3364.9,0.467]
[1735392636474,3.50549,3365.0,3364.9,0.7647]
[1735392636776,3.50549,3365.0,3364.9,0.467]
[1735392638670,0.2977,3364.9,3364.8,0.2977]
[1735392639371,3.2078,3365.0,3364.7,0.74662]
[1735392639372,0.29771,3364.8,3364.7,0.74662]
[1735392639773,3.2078,3365.0,3364.7,0.4489]
[1735392639978,3.50549,3365.0,3364.9,0.2977]
[1735392640276,3.50549,3365.0,3364.7,0.4489]
[1735392640277,0.29769,3365.1,3365.0,0.29768]
[1735392641271,0.29771,3364.9,3364.8,0.2977]
[1735392641483,0.29771,3364.9,3364.8,7.304824]
[1735392642281,0.29771,3364.9,3364.8,0.2977]
[1735392643481,3.2078,3364.9,3364.8,6.09415503]
[1735392643676,3.5055,3364.9,3364.8,6.39186503]
[1735392643875,3.5055,3364.9,3364.8,6.09415503]
[1735392644476,3.9281,3364.9,3364.8,6.09415503]
[1735392644869,3.6304,3364.9,3364.7,0.74661]
[1735392645076,0.29771,3364.8,3364.7,0.74661]
[1735392646279,0.29771,3364.8,3364.7,6.84182974]
[1735392647480,0.29771,3364.8,3364.7,13.84896374]
[1735392648669,0.29771,3364.8,3364.7,0.74662]
[1735392651078,0.29771,3364.8,3364.7,7.753744]
[1735392651274,0.29771,3364.8,3364.7,13.84957422]
[1735392653984,0.29771,3364.9,3364.8,0.29771]
[1735392655080,0.29771,3364.9,3364.8,6.39354022]
[1735392655278,0.29771,3364.9,3364.8,6.09583022]
[1735392656186,0.29771,3364.8,3364.7,0.74661]
[1735392657779,0.29772,3364.7,3364.6,7.007124]
[1735392657987,0.75412,3364.7,3364.6,7.007124]
[1735392659593,0.29774,3364.4,3364.3,1.3395]
[1735392659984,0.29774,3364.4,3364.3,1.63725]
[1735392660292,0.29776,3364.2,3364.1,4.67356041]
[1735392660792,3.3984,3364.2,3363.8,4.67356041]
[1735392660992,3.50559,3363.9,3363.8,4.67356041]
[1735392661989,0.29782,3363.5,3363.4,0.9032]
[1735392662389,0.20782,3363.5,3363.4,1.20103]
[1735392665395,0.29785,3363.2,3363.1,45.47356041]
[1735392665595,3.2078,3363.5,3363.1,45.92336041]
[1735392665889,3.2078,3363.5,3363.4,0.29783]
[1735392666395,3.50562,3363.5,3363.4,0.29783]
[1735392667897,3.2078,3363.5,3363.4,0.29783]
[1735392668897,3.50562,3363.5,3363.4,0.29783]
[1735392669283,0.29785,3363.2,3363.1,41.54766]
[1735392669491,0.29785,3363.2,3363.1,0.4498]
[1735392670386,0.29785,3363.2,3363.1,0.74766]
[1735392671988,0.29785,3363.2,3363.1,0.4498]
[1735392678494,0.29789,3362.8,3362.7,0.4405]
[1735392685589,0.29789,3362.8,3362.7,0.7384]
[1735392685795,0.74468,3363.1,3362.7,0.4405]
[1735392685993,0.29788,3362.9,3362.8,0.29787]
[1735392686693,0.29785,3363.4,3363.3,0.29783]
[1735392686897,3.2078,3363.5,3363.4,0.29783]
[1735392687100,3.2078,3363.5,3362.7,5.13777]
[1735392687101,3.50559,3363.9,3363.8,0.2978]
[1735392687400,0.29781,3363.8,3363.7,0.2978]
[1735392688006,3.2078,3363.9,3363.6,0.9196]
[1735392688304,0.29781,3363.7,3363.6,1.21741]
[1735392688607,0.29781,3363.7,3363.6,0.9196]
[1735392689000,0.29781,3363.7,3363.6,0.4552]
[1735392689305,0.29784,3363.3,3363.2,0.4449]
[1735392690310,3.2078,3363.5,3363.2,0.4449]
[1735392690605,0.29781,3363.7,3363.6,0.29782]
[1735392693105,0.29782,3363.5,3363.4,0.4636]
[1735392693607,0.29785,3363.2,3363.1,0.29786]
[1735392694719,3.6322,3363.9,3363.5,0.29781]
[1735392694720,0.29783,3363.6,3363.5,0.29781]
[1735392695617,3.2078,3363.9,3363.7,0.2978]
[1735392695618,0.29781,3363.8,3363.7,0.2978]
[1735392696023,0.29782,3363.7,3363.6,0.29781]
[1735392696215,3.2078,3363.9,3363.3,40.8]
[1735392696420,0.2978,3363.8,3363.7,0.2978]
[1735392696612,3.2078,3363.9,3363.5,0.4455]
[1735392696813,3.50559,3363.9,3363.8,0.2978]
[1735392700020,3.2078,3363.9,3363.8,0.2978]
[1735392702120,3.6453,3364.7,3364.3,0.29774]
[1735392702320,0.29774,3364.5,3364.4,0.8933]
[1735392707427,0.29774,3364.5,3364.4,1.19104]
[1735392709429,0.29774,3364.5,3364.4,0.8933]
[1735392710529,0.29774,3364.5,3364.4,1.19104]
[1735392710730,0.29774,3364.5,3364.4,0.8933]
[1735392711228,0.29774,3364.5,3364.4,0.4365]
[1735392712330,0.4656,3364.6,3364.0,0.8997]
[1735392712534,0.29776,3364.2,3364.1,0.4483]
[1735392712932,0.29776,3364.2,3364.1,0.74607]
[1735392715036,0.29779,3363.9,3363.8,3.2078]
[1735392715240,0.29779,3363.9,3363.8,3.93039]
[1735392715939,0.29779,3363.9,3363.8,0.72259]
[1735392717942,0.29779,3364.0,3363.9,0.29778]
[1735392719930,0.29779,3363.9,3363.8,0.72259]
[1735392720340,0.29781,3363.7,3363.6,0.4634]
[1735392720541,0.29781,3363.7,3363.6,0.76122]
[1735392722443,0.29781,3363.7,3363.6,0.4634]
[1735392722748,0.29781,3363.7,3363.6,0.76122]
[1735392723945,3.50559,3363.9,3363.8,0.2978]
[1735392724150,3.2078,3363.9,3363.8,0.2978]
[1735392724350,3.2078,3364.3,3363.6,0.4634]
[1735392724539,0.29776,3364.3,3364.2,0.29775]
[1735392724843,0.29774,3364.6,3364.5,0.29773]
[1735392725250,0.29774,3364.6,3364.5,41.09773]
[1735392725543,0.29772,3364.7,3364.6,0.29772]
[1735392725851,3.97392,3364.8,3364.7,0.29772]
[1735392726240,0.2977,3364.9,3364.5,44.0078]
[1735392726442,0.29768,3365.2,3365.1,0.29767]
[1735392728045,3.2078,3365.7,3364.9,3.2078]
[1735392728245,0.29764,3365.6,3365.5,0.29764]
[1735392735151,0.29765,3365.5,3365.4,0.29765]
[1735392735454,3.6337,3365.7,3365.1,0.29767]
[1735392735455,0.29768,3365.2,3365.1,0.29767]
[1735392736045,0.29769,3365.0,3364.9,3.5055]
[1735392736247,0.29769,3365.0,3364.9,3.2078]
[1735392736452,0.29769,3365.0,3364.9,3.5055]
[1735392739054,0.29769,3365.0,3364.9,3.2078]
[1735392739550,1.0419,3365.1,3364.6,0.29772]
[1735392739755,0.29773,3364.7,3364.6,0.29772]
[1735392744363,0.29771,3364.8,3364.7,0.29771]
[1735392747058,0.76481,3364.9,3364.8,0.29771]
[1735392751768,0.29772,3364.8,3364.7,0.29771]
[1735392753772,0.4671,3364.9,3364.5,41.2269]
[1735392753976,0.76481,3364.9,3364.8,0.29771]
[1735392754969,3.2078,3365.4,3365.3,0.29766]
[1735392755270,0.29766,3365.5,3365.4,0.29765]
[1735392755471,0.29766,3365.5,3365.4,0.72555]
[1735392755677,0.29764,3365.7,3365.6,0.29763]
[1735392755875,0.29764,3365.7,3365.6,41.09763]
[1735392756769,3.6576,3366.2,3365.6,40.8]
[1735392756973,0.29762,3366.0,3365.9,0.2976]
[1735392760582,0.29762,3366.0,3365.6,41.54409]
[1735392760583,3.2078,3366.2,3366.1,0.29759]
[1735392761578,0.29754,3366.8,3366.7,0.29754]
[1735392761979,3.50533,3366.9,3366.8,0.29753]
[1735392762271,0.29753,3366.9,3366.8,0.29753]
[1735392763276,0.29752,3367.0,3366.9,0.29751]
[1735392766183,0.29755,3366.7,3366.6,0.29754]
[1735392767483,3.2078,3367.3,3366.5,3.2078]
[1735392767784,0.29755,3366.6,3366.5,3.2078]
[1735392770085,0.4504,3366.8,3366.3,0.75577]
[1735392770293,0.29757,3366.4,3366.3,0.75577]
[1735392770589,0.29759,3366.1,3366.0,0.4619]
[1735392770784,0.2976,3366.0,3365.9,0.29761]
[1735392770986,0.29761,3365.9,3365.8,1.17561]
[1735392771491,0.29761,3365.9,3365.8,0.4283]
[1735392773287,0.29761,3365.9,3365.8,0.72592]
[1735392775896,0.29761,3365.9,3365.8,0.4283]
[1735392778185,0.29761,3365.9,3365.8,0.72592]
[1735392780195,0.29761,3366.0,3365.9,0.2976]
[1735392780685,0.29761,3366.0,3365.9,41.0976]
[1735392780889,0.4488,3366.2,3365.9,40.8]
[1735392781089,0.2976,3366.1,3366.0,0.29759]
[1735392783797,0.4488,3366.2,3365.9,40.8]
[1735392783995,0.2976,3366.0,3365.9,40.8]
[1735392784398,0.29761,3365.9,3365.8,0.4283]
[1735392785498,0.29761,3365.9,3365.8,0.72592]
[1735392788690,0.29761,3365.9,3365.8,0.4283]
[1735392788893,0.899,3366.2,3365.7,3.2078]
[1735392789095,0.29762,3365.8,3365.7,3.50543]
[1735392789305,0.29762,3365.8,3365.7,3.2078]
[1735392790002,0.29762,3365.8,3365.7,3.50543]
[1735392790893,0.29762,3365.8,3365.7,3.2078]
[1735392791903,0.29762,3365.8,3365.7,3.50543]
[1735392792300,0.29762,3365.8,3365.7,3.2078]
[1735392792902,0.29765,3365.5,3365.4,0.4286]
[1735392793306,0.29766,3365.3,3365.2,5.12296041]
[1735392793799,0.29766,3365.3,3365.2,0.4494]
[1735392793996,0.74413,3365.5,3365.0,40.8]
[1735392794198,0.29768,3365.1,3365.0,41.09768]
[1735392794598,0.29768,3365.1,3365.0,0.29768]
[1735392798307,0.74413,3365.5,3364.9,44.0078]
[1735392798506,0.29769,3365.0,3364.9,44.30549]
[1735392800417,0.29769,3365.1,3365.0,0.29768]
[1735392804918,0.29769,3365.0,3364.9,44.30549]
[1735392807914,0.29769,3365.0,3364.9,3.2078]
[1735392809512,0.4522,3365.2,3364.8,1.18881]
[1735392809713,0.2977,3364.9,3364.8,1.18881]
[1735392810009,0.2977,3364.9,3364.8,4.0989]
[1735392810812,0.2977,3364.9,3364.8,4.39661]
[1735392811221,0.2977,3364.9,3364.8,3.2078]
[1735392811422,0.29773,3364.6,3364.5,4.67356041]
[1735392812423,0.29774,3364.4,3364.3,0.4531]
[1735392814741,3.2078,3364.8,3364.3,0.4531]
[1735392814923,0.29773,3364.7,3364.6,0.29772]
[1735392816624,3.2078,3364.8,3364.3,0.4531]
[1735392816831,0.29774,3364.6,3364.5,0.29773]
[1735392817325,0.29774,3364.4,3364.3,0.75085]
[1735392817826,0.29774,3364.4,3364.3,0.4531]
[1735392823225,0.4336,3364.6,3363.8,7.88136041]
[1735392823426,0.29779,3363.9,3363.8,7.88136041]
[1735392824227,0.29779,3363.9,3363.8,3.5056]
[1735392824531,0.29779,3363.9,3363.8,3.2078]
[1735392827524,0.29779,3363.9,3363.8,3.5056]
[1735392827735,0.29779,3363.9,3363.8,3.2078]
[1735392829334,0.29779,3363.9,3363.8,3.5056]
[1735392830633,0.29779,3363.9,3363.8,3.2078]
[1735392831637,1.04222,3364.1,3363.8,3.2078]
[1735392831825,0.29779,3363.9,3363.8,3.2078]
[1735392832032,0.29779,3363.9,3363.8,3.5056]
[1735392832536,0.29779,3363.9,3363.8,3.2078]
[1735392834035,0.74445,3364.1,3363.8,3.2078]
[1735392834237,0.29779,3363.9,3363.8,3.2078]
[1735392834535,0.29779,3363.9,3363.8,3.5056]
[1735392835335,0.29778,3364.1,3364.0,0.29777]
[1735392836134,6.88714,3364.6,3363.8,3.2078]
[1735392836339,0.29775,3364.4,3364.3,0.29774]
[1735392839041,3.95214,3364.6,3364.1,0.4534]
[1735392839241,0.29776,3364.3,3364.2,0.29775]
[1735392841342,3.2078,3364.6,3364.1,1.19782]
[1735392841643,3.50554,3364.6,3364.5,0.29774]
[1735392842238,0.29776,3364.3,3364.2,0.29775]
[1735392843848,3.2078,3364.6,3364.1,0.4534]
[1735392844144,0.29774,3364.5,3364.4,0.29774]
[1735392846850,0.29775,3364.4,3364.3,0.29775]
[1735392847150,0.29775,3364.3,3364.2,4.97132041]
[1735392847550,0.29775,3364.3,3364.2,0.29776]
[1735392848448,0.29775,3364.3,3364.2,0.74916]
[1735392850670,0.29775,3364.5,3364.4,0.29774]
[1735392851050,0.29775,3364.5,3364.4,41.09774]
[1735392852360,0.29775,3364.5,3364.4,41.54594]
[1735392852762,0.29775,3364.5,3364.4,0.4482]
[1735392856059,0.29775,3364.5,3364.4,0.74594]
[1735392857760,0.29775,3364.5,3364.4,0.4482]
[1735392858163,0.29775,3364.5,3364.4,5.41950041]
[1735392858358,0.4572,3364.8,3364.4,5.12176041]
[1735392858662,0.29773,3364.7,3364.6,0.29771]
[1735392859365,0.29773,3364.7,3364.6,4.97127041]
[1735392860361,0.29773,3364.7,3364.6,0.29771]
[1735392861355,0.29773,3364.7,3364.6,0.73741]
[1735392861562,0.29773,3364.7,3364.6,6.8258372]
[1735392862566,0.29773,3364.7,3364.6,13.8329612]
[1735392863762,0.29773,3364.7,3364.6,6.8258372]
[1735392864365,3.95203,3365.1,3364.6,6.5281272]
[1735392864665,0.29771,3364.9,3364.8,0.2977]
[1735392866062,0.29771,3364.9,3364.8,4.96255682]
[1735392866567,3.2078,3365.1,3365.0,0.29769]